fUST/lending_fUST_20260126
["ID","MTS","AMOUNT","RATE_DAILY","PERIOD"]
[403629227,1769431840700,-379.78871459,0.00014729,2]
[403629228,1769431840710,-592.82644668,0.00014729,2]
[403629229,1769431840720,-353.0827535,0.00014729,2]
[403629230,1769431840730,-504.1349714,0.00014729,2]
[403629232,1769431840740,-786.92318192,0.00014729,2]
[403629234,1769431840750,-591.57800439,0.00014729,2]
[403629235,1769431840760,-1064.8404079,0.00014729,2]
[403629236,1769431840770,-1893.04961404,0.00014729,2]
[403629237,1769431840780,-2957.89002193,0.00014729,2]
[403629238,1769431840790,-4259.36163159,0.00014729,2]
[403629239,1769431840799,-5797.46444299,0.00014729,2]
[403629240,1769431840808,-168.0,0.0001474,2]
[403629241,1769431840818,-900.0,0.00014768,2]
[403629242,1769431840827,-179.9640072,0.0001478,2]
[403629243,1769431840836,-1461.62464944,0.00014795,2]
[403629244,1769431840845,-1500.0,0.00014795,2]
[403629245,1769431840855,-245.921,0.00014825,2]
[403629246,1769431840864,-2000.0,0.00014916,2]
[403629247,1769431840873,-2000.0,0.00014916,2]
[403629248,1769431840883,-2000.0,0.00014916,2]
[403629249,1769431840892,-2000.0,0.00014916,2]
[403629250,1769431840902,-168.0,0.00014986,2]
[403629251,1769431840910,-100000.0,0.0001499,2]
[403629252,1769431840919,-164.34495881,0.00015092,2]
[403629253,1769431840928,-243.0,0.00015233,3]
[403629254,1769431840938,-168.0,0.00015238,2]
[403629255,1769431840947,-168.0,0.00015255,2]
[403629256,1769431840956,-153.6801633,0.00015278,2]
[403629257,1769431840966,-8694.24635286,0.000153,2]
[403629258,1769431840975,-1293.63223956,0.00015316,2]
[403629259,1769431840985,-2000.0,0.00015342,2]
[403629260,1769431840995,-168.0,0.00015358,2]
[403629261,1769431841003,-86868.84975102,0.000154,2]
[403629262,1769431841012,-578251.46491288,0.000154,2]
[403629263,1769431841021,-3000.0,0.000154,5]
[403629264,1769431841030,-2586.76761782,0.000154,5]
[403629265,1769431841039,-423.28225792,0.000154,2]
[403629266,1769431841048,-211.64112896,0.000154,2]
[403629267,1769431841058,-167.5379552,0.000154,2]
[403629268,1769431841067,-158.42205178,0.000154,2]
[403629269,1769431841076,-205.81013654,0.000154,2]
[403629270,1769431841085,-175.5111887,0.000154,2]
[403629271,1769431841094,-270.32022888,0.000154,2]
[403629272,1769431841103,-382.91587137,0.000154,2]
[403629273,1769431841112,-167.74637506,0.000154,2]
[403629274,1769431841121,-202.98668337,0.000154,2]
[403629275,1769431841130,-593072.21974205,0.000154,2]
[403629276,1769431841139,-150.0,0.000154,30]
[403629277,1769431841148,-500.0,0.000154,2]
[403629278,1769431841157,-500.0,0.000154,2]
[403629279,1769431841167,-1328.190509,0.00015446,46]
[403629280,1769431841175,-2500.0,0.00015464,2]
[403629281,1769431841184,-2500.0,0.00015464,2]
[403629282,1769431841194,-2500.0,0.00015464,2]
[403629283,1769431841203,-2500.0,0.00015464,2]
[403629284,1769431841212,-168.0,0.00015472,2]
[403629285,1769431841221,-1000.0,0.000155,2]
[403629286,1769431841230,-168.0,0.00015506,2]
[403629287,1769431841238,-200.0,0.00015531,7]
[403629288,1769431841247,-200.0,0.00015531,7]
[403629289,1769431841256,-200.0,0.00015531,7]
[403629290,1769431841265,-150.0,0.00015629,9]
[403629292,1769431841274,-150.0,0.00015629,9]
[403629294,1769431841283,-5000.0,0.0001564,2]
[403629296,1769431841292,-168.0,0.00015642,2]
[403629298,1769431841301,-168.0,0.00015662,2]
[403629300,1769431841310,-1000.0,0.00015678,2]
[403629302,1769431841319,-791.0,0.00015678,2]
[403629304,1769431841328,-168.0,0.00015726,2]
[403629306,1769431841336,-250.0,0.00015766,9]
[403629308,1769431841345,-250.0,0.00015766,9]
[403629310,1769431841355,-168.0,0.00015769,2]
[403629312,1769431841364,-2274.9218649,0.00015847,5]
[403629313,1769431841373,-200.0,0.00015855,7]
[403629316,1769431841385,-200.0,0.00015855,7]
[403629318,1769431841395,-200.0,0.00015855,7]
[403629320,1769431841404,-1328.190509,0.00015858,50]
[403629322,1769431841413,-423.28225792,0.00015876,9]
[403629324,1769431841422,-1731.474074,0.00015876,7]
[403629326,1769431841433,-168.0,0.00015889,2]
[403629328,1769431841442,-160.940442,0.00015889,7]
[403629330,1769431841451,-1355.889369,0.0001589,7]
[403629332,1769431841461,-2373.346734,0.0001589,7]
[403629334,1769431841470,-2500.0,0.0001589,2]
[403629336,1769431841479,-382.91587137,0.00015903,9]
[403629338,1769431841489,-216.17135471,0.00016,2]
[403629340,1769431841498,-3000.0,0.00016,2]
[403629342,1769431841508,-1000.0,0.00016,2]
[403629344,1769431841518,-3000.0,0.0001601,2]
[403629346,1769431841528,-956.238633,0.0001601,7]
[403629348,1769431841538,-1609.404413,0.0001601,7]
[403629350,1769431841547,-1355.419529,0.00016012,2]
[403629352,1769431841557,-3000.0,0.00016012,2]
[403629354,1769431841567,-3000.0,0.00016012,2]
[403629356,1769431841576,-3000.0,0.00016012,2]
[403629358,1769431841589,-3000.0,0.0001602,2]
[403629360,1769431841600,-3000.0,0.0001603,2]
[403629362,1769431841609,-282.457059,0.0001604,7]
[403629364,1769431841619,-3000.0,0.0001604,2]
[403629366,1769431841628,-3000.0,0.0001605,2]
[403629368,1769431841638,-662.885348,0.0001605,7]
[403629371,1769431841647,-3000.0,0.0001606,2]
[403629373,1769431841656,-3000.0,0.0001607,2]
[403629375,1769431841666,-3000.0,0.0001608,2]
[403629376,1769431841676,-3000.0,0.0001609,2]
[403629379,1769431841686,-3000.0,0.000161,2]
[403629380,1769431841695,-3000.0,0.0001611,2]
[403629383,1769431841705,-3000.0,0.0001612,2]
[403629385,1769431841715,-3000.0,0.0001613,2]
[403629387,1769431841725,-3000.0,0.0001614,2]
[403629388,1769431841737,-3000.0,0.0001615,2]
[403629391,1769431841747,-3000.0,0.0001616,2]
[403629393,1769431841756,-3000.0,0.0001617,2]
[403629394,1769431841765,-305.5744611,0.00016176,2]
[403629396,1769431841774,-231.4073127,0.00016176,2]
[403629398,1769431841783,-199.7326391,0.00016176,2]
[403629400,1769431841792,-317.7366431,0.00016176,2]
[403629402,1769431841801,-603.732074,0.00016176,2]
[403629404,1769431841809,-194.6248376,0.00016176,2]
[403629406,1769431841819,-305.5744611,0.00016176,2]
[403629408,1769431841828,-185.3395218,0.00016176,2]
[403629410,1769431841836,-603.732074,0.00016176,2]
[403629412,1769431841845,-304.9214535,0.00016176,2]
[403629414,1769431841854,-603.732074,0.00016176,2]
[403629416,1769431841864,-194.6248376,0.00016176,2]
[403629418,1769431841873,-185.3395218,0.00016176,2]
[403629420,1769431841882,-194.6248376,0.00016176,2]
[403629422,1769431841891,-185.3395218,0.00016176,2]
[403629424,1769431841900,-601.3453713,0.00016176,2]
[403629426,1769431841909,-184.6822138,0.00016176,2]
[403629428,1769431841918,-194.6248376,0.00016176,2]
[403629430,1769431841926,-194.6248376,0.00016176,2]
[403629432,1769431841938,-194.6248376,0.00016176,2]
[403629434,1769431841947,-194.6248376,0.00016176,2]
[403629436,1769431841956,-3000.0,0.0001618,2]
[403629438,1769431841965,-3000.0,0.0001619,2]
[403629440,1769431841975,-3000.0,0.000162,2]
[403629442,1769431841984,-3000.0,0.0001621,2]
[403629444,1769431841993,-3000.0,0.0001622,2]
[403629446,1769431842003,-3000.0,0.0001623,2]
[403629448,1769431842012,-3000.0,0.0001624,2]
[403629450,1769431842022,-3000.0,0.0001625,2]
[403629452,1769431842031,-3000.0,0.0001626,2]
[403629454,1769431842041,-1328.190509,0.00016269,54]
[403629456,1769431842052,-3000.0,0.0001627,2]
[403629458,1769431842061,-3000.0,0.0001628,2]
[403629460,1769431842071,-3000.0,0.0001629,2]
[403629462,1769431842080,-3000.0,0.000163,2]
[403629464,1769431842089,-3000.0,0.0001631,2]
[403629466,1769431842098,-3000.0,0.0001632,2]
[403629468,1769431842107,-3000.0,0.0001633,2]
[403629470,1769431842116,-3000.0,0.0001634,2]
[403629472,1769431842125,-3000.0,0.0001635,2]
[403629474,1769431842134,-423.28225792,0.00016351,17]
[403629476,1769431842143,-3000.0,0.0001636,2]
[403629478,1769431842152,-3000.0,0.0001637,2]
[403629480,1769431842161,-3000.0,0.0001638,2]
[403629482,1769431842170,-160.605701,0.0001638,7]
[403629484,1769431842180,-3000.0,0.0001639,2]
[403629486,1769431842189,-184.03,0.00016394,2]
[403629488,1769431842198,-3000.0,0.000164,2]
[403629490,1769431842207,-175.5111887,0.00016405,17]
[403629492,1769431842216,-382.91587137,0.00016405,17]
[403629494,1769431842226,-3000.0,0.0001641,2]
[403629496,1769431842236,-3000.0,0.0001642,2]
[403629498,1769431842246,-3000.0,0.0001643,2]
[403629500,1769431842255,-250.0,0.00016438,2]
[403629502,1769431842264,-500.0,0.00016438,2]
[403629504,1769431842273,-500.0,0.00016438,2]
[403629506,1769431842283,-500.0,0.00016438,2]
[403629508,1769431842292,-500.0,0.00016438,2]
[403629510,1769431842301,-500.0,0.00016438,2]
[403629512,1769431842310,-500.0,0.00016438,2]
[403629514,1769431842320,-500.0,0.00016438,2]
[403629516,1769431842329,-500.0,0.00016438,2]
[403629518,1769431842339,-500.0,0.00016438,2]
[403629520,1769431842349,-500.0,0.00016438,2]
[403629522,1769431842359,-500.0,0.00016438,2]
[403629524,1769431842368,-500.0,0.00016438,2]
[403629526,1769431842377,-500.0,0.00016438,2]
[403629528,1769431842386,-500.0,0.00016438,2]
[403629530,1769431842395,-263.417628,0.00016438,2]
[403629532,1769431842404,-263.417628,0.00016438,2]
[403629534,1769431842414,-263.417628,0.00016438,2]
[403629536,1769431842423,-263.417628,0.00016438,2]
[403629538,1769431842436,-150.0,0.00016438,2]
[403629540,1769431842445,-151.0,0.00016438,2]
[403629542,1769431842454,-151.0,0.00016438,2]
[403629544,1769431842463,-164.53752599,0.00016438,2]
[403629546,1769431842472,-3000.0,0.00016438,2]
[403629548,1769431842482,-3000.0,0.0001644,2]
[403629549,1769431842492,-3000.0,0.0001645,2]
[403629551,1769431842501,-3000.0,0.0001646,2]
[403629553,1769431842511,-3000.0,0.0001647,2]
[403629556,1769431842523,-200.0,0.00016473,2]
[403629558,1769431842532,-3000.0,0.0001648,2]
[403629560,1769431842542,-3000.0,0.0001649,2]
[403629562,1769431842551,-374.746636,0.0001649,7]
[403629564,1769431842562,-20000.0,0.000165,2]
[403629566,1769431842571,-3000.0,0.000165,2]
[403629568,1769431842580,-1000.0,0.000165,2]
[403629570,1769431842590,-3000.0,0.0001651,2]
[403629572,1769431842600,-3000.0,0.0001652,2]
[403629574,1769431842609,-3000.0,0.0001653,2]
[403629576,1769431842618,-3000.0,0.0001654,2]
[403629578,1769431842628,-3000.0,0.0001655,2]
[403629580,1769431842637,-3000.0,0.0001656,2]
[403629582,1769431842648,-3500.0,0.0001656,2]
[403629584,1769431842657,-497.48189141,0.0001656,2]
[403629586,1769431842667,-1975.94196246,0.0001656,2]
[403629588,1769431842677,-3000.0,0.0001657,2]
[403629590,1769431842686,-167.74637506,0.00016573,20]
[403629592,1769431842695,-4032.66127,0.0001658,2]
[403629594,1769431842705,-5045.85787008,0.00016646,2]
[403629596,1769431842714,-462.08694688,0.0001667,2]
[403629598,1769431842723,-1328.190509,0.0001668,57]
[403629600,1769431842732,-423.28225792,0.00016827,25]
[403629602,1769431842742,-184.01,0.00016845,2]
[403629604,1769431842751,-150.0,0.00016896,2]
[403629606,1769431842760,-382.91587137,0.00016908,25]
[403629608,1769431842769,-394.99757135,0.00016986,30]
[403629610,1769431842778,-368.66439993,0.00016986,30]
[403629612,1769431842787,-394.99757135,0.00016986,30]
[403629614,1769431842798,-150.33747135,0.00016986,2]
[403629616,1769431842807,-3500.0,0.00016986,2]
[403629618,1769431842816,-263.417628,0.00016998,2]
[403629620,1769431842826,-263.417628,0.00016998,2]
[403629622,1769431842835,-263.417628,0.00016998,2]
[403629624,1769431842844,-263.417628,0.00016998,2]
[403629626,1769431842854,-2000.0,0.00017,2]
[403629628,1769431842863,-111650.9361029,0.00017,2]
[403629636,1769431843010,-1000.0,0.00017,2]
[403629637,1769431843021,-151.0,0.00017,2]
[403629638,1769431843030,-1328.190509,0.00017091,61]
[403629639,1769431843039,-4000.0,0.00017108,2]
[403629640,1769431843048,-494.706878,0.00017146,7]
[403629641,1769431843057,-387.396962,0.00017162,7]
[403629642,1769431843066,-678.099066,0.00017162,7]
[403629643,1769431843075,-1000.0,0.00017245,2]
[403629644,1769431843084,-1000.0,0.00017245,2]
[403629646,1769431843093,-273.211038,0.00017291,7]
[403629647,1769431843102,-459.829832,0.00017291,7]
[403629648,1769431843111,-423.28225792,0.00017303,32]
[403629649,1769431843121,-2150.0,0.00017306,2]
[403629650,1769431843130,-184.03,0.00017324,2]
[403629651,1769431843139,-189.395813,0.00017334,7]
[403629652,1769431843148,-175.5111887,0.00017411,32]
[403629654,1769431843157,-382.91587137,0.00017411,32]
[403629655,1769431843168,-2000.0,0.00017418,7]
[403629656,1769431843176,-8694.2463528,0.00017449,2]
[403629657,1769431843185,-1000.0,0.000175,2]
[403629658,1769431843194,-1328.190509,0.00017503,65]
[403629659,1769431843202,-4000.0,0.00017534,2]
[403629661,1769431843211,-2140.39769596,0.000176,2]
[403629664,1769431843220,-799.999999,0.000176,2]
[403629666,1769431843229,-4500.0,0.00017656,2]
[403629668,1769431843237,-167.74637506,0.00017746,38]
[403629670,1769431843247,-423.28225792,0.00017778,40]
[403629673,1769431843256,-268.0,0.00017808,2]
[403629674,1769431843265,-150.0,0.00017808,2]
[403629676,1769431843274,-1000.0,0.00017808,2]
[403629678,1769431843283,-281.66552966,0.00017842,2]
[403629680,1769431843293,-2000.0,0.00017848,7]
[403629683,1769431843303,-382.91587137,0.00017913,40]
[403629684,1769431843312,-1328.190509,0.00017914,69]
[403629687,1769431843322,-500.0,0.00018,2]
[403629689,1769431843331,-200.0,0.00018,2]
[403629691,1769431843341,-162079.09494821,0.00018,2]
[403629693,1769431843350,-263.417628,0.00018,2]
[403629695,1769431843359,-263.417628,0.00018,2]
[403629697,1769431843368,-263.417628,0.00018,2]
[403629698,1769431843378,-263.417628,0.00018,2]
[403629700,1769431843387,-1000.0,0.00018,2]
[403629702,1769431843396,-342.0,0.00018016,2]
[403629705,1769431843406,-4500.0,0.00018082,2]
[403629706,1769431843416,-83757.73163137,0.00018082,3]
[403629709,1769431843425,-5092.436529,0.00018204,2]
[403629711,1769431843439,-432.0,0.0001821,2]
[403629713,1769431843449,-1166.9007296,0.00018219,2]
[403629715,1769431843459,-423.28225792,0.00018254,48]
[403629717,1769431843468,-2000.0,0.00018278,7]
[403629719,1769431843478,-1328.190509,0.00018325,72]
[403629721,1769431843487,-564.47,0.00018349,2]
[403629723,1769431843497,-200.0,0.00018356,2]
[403629725,1769431843508,-158.24968819,0.000184,3]
[403629727,1769431843518,-175.5111887,0.00018416,48]
[403629729,1769431843528,-382.91587137,0.00018416,48]
[403629731,1769431843537,-1099.536109,0.00018493,2]
[403629733,1769431843547,-20000.0,0.000185,2]
[403629735,1769431843556,-1000.0,0.000185,2]
[403629737,1769431843565,-151.0,0.000185,2]
[403629739,1769431843575,-184.03,0.00018516,2]
[403629741,1769431843584,-5000.0,0.0001863,2]
[403629743,1769431843593,-510.44488318,0.0001867,2]
[403629745,1769431843602,-2000.0,0.00018709,7]
[403629747,1769431843611,-423.28225792,0.0001873,56]
[403629749,1769431843620,-1328.190509,0.00018736,76]
[403629751,1769431843630,-249.52138343,0.00018767,30]
[403629753,1769431843639,-5000.0,0.00018768,2]
[403629755,1769431843649,-249.52138343,0.00018849,30]
[403629757,1769431843659,-303.10001603,0.000189,2]
[403629759,1769431843668,-303.10001603,0.000189,2]
[403629761,1769431843677,-251.7262602,0.00018904,2]
[403629763,1769431843687,-270.32022888,0.00018919,56]
[403629766,1769431843697,-382.91587137,0.00018919,56]
[403629768,1769431843707,-167.74637506,0.00018919,56]
[403629769,1769431843716,-249.52138343,0.00018932,30]
[403629772,1769431843726,-1000.0,0.0001897,2]
[403629773,1769431843735,-1000.0,0.0001897,2]
[403629776,1769431843745,-579.0,0.0001897,2]
[403629778,1769431843755,-150000.54141633,0.00019,2]
[403629780,1769431843764,-2603.49,0.00019,2]
[403629781,1769431843773,-24459.88850978,0.00019,2]
[403629783,1769431843781,-266.65,0.00019,14]
[403629785,1769431843790,-263.417628,0.00019,2]
[403629787,1769431843799,-263.417628,0.00019,2]
[403629789,1769431843808,-263.417628,0.00019,2]
[403629791,1769431843817,-263.417628,0.00019,2]
[403629793,1769431843826,-1000.0,0.00019,2]
[403629795,1769431843835,-249.52138343,0.00019041,30]
[403629797,1769431843844,-168.0,0.00019068,3]
[403629799,1769431843853,-303.10001603,0.00019089,2]
[403629801,1769431843862,-303.10001603,0.00019089,2]
[403629803,1769431843872,-149659.37936746,0.00019101,3]
[403629805,1769431843881,-546.47871096,0.00019101,3]
[403629807,1769431843891,-214.806405,0.00019101,2]
[403629809,1769431843900,-158.42205178,0.00019107,56]
[403629811,1769431843908,-249.52138343,0.00019123,30]
[403629813,1769431843918,-2000.0,0.00019139,7]
[403629815,1769431843927,-1328.190509,0.00019147,80]
[403629817,1769431843937,-263.417628,0.00019178,2]
[403629819,1769431843946,-263.417628,0.00019178,2]
[403629821,1769431843954,-263.417628,0.00019178,2]
[403629823,1769431843963,-263.41762519,0.00019178,2]
[403629825,1769431843973,-507.9665,0.00019178,2]
[403629827,1769431843982,-507.9665,0.00019178,2]
[403629829,1769431843991,-507.9665,0.00019178,2]
[403629831,1769431844000,-507.9665,0.00019178,2]
[403629833,1769431844009,-507.9665,0.00019178,2]
[403629835,1769431844018,-507.9665,0.00019178,2]
[403629837,1769431844027,-507.9665,0.00019178,2]
[403629840,1769431844038,-200.0,0.00019178,2]
[403629842,1769431844047,-507.9665,0.00019178,2]
[403629844,1769431844056,-507.9665,0.00019178,2]
[403629846,1769431844065,-507.9665,0.00019178,2]
[403629848,1769431844074,-483.39,0.00019178,2]
[403629850,1769431844083,-507.9665,0.00019178,2]
[403629852,1769431844093,-200.0,0.00019178,2]
[403629854,1769431844102,-507.9665,0.00019178,2]
[403629856,1769431844111,-507.9665,0.00019178,2]
[403629858,1769431844120,-200.0,0.00019178,2]
[403629860,1769431844129,-315.93,0.00019178,2]
[403629862,1769431844138,-507.9665,0.00019178,2]
[403629864,1769431844148,-507.9665,0.00019178,2]
[403629866,1769431844157,-507.9665,0.00019178,2]
[403629868,1769431844166,-507.9665,0.00019178,2]
[403629870,1769431844175,-507.96,0.00019178,2]
[403629872,1769431844184,-507.9665,0.00019178,2]
[403629874,1769431844194,-507.9665,0.00019178,2]
[403629876,1769431844203,-507.96,0.00019178,2]
[403629878,1769431844213,-200.0,0.00019178,2]
[403629880,1769431844222,-256.089938,0.00019178,2]
[403629882,1769431844231,-256.089938,0.00019178,2]
[403629884,1769431844240,-256.089938,0.00019178,2]
[403629886,1769431844250,-256.089938,0.00019178,2]
[403629888,1769431844259,-256.089938,0.00019178,2]
[403629890,1769431844269,-256.089938,0.00019178,2]
[403629892,1769431844278,-256.089938,0.00019178,2]
[403629894,1769431844288,-256.089938,0.00019178,2]
[403629896,1769431844297,-277.267785,0.00019178,2]
[403629899,1769431844307,-256.089938,0.00019178,2]
[403629900,1769431844316,-277.267785,0.00019178,2]
[403629903,1769431844325,-256.089938,0.00019178,2]
[403629904,1769431844334,-277.267785,0.00019178,2]
[403629906,1769431844343,-256.089938,0.00019178,2]
[403629908,1769431844352,-277.267785,0.00019178,2]
[403629910,1769431844360,-256.089938,0.00019178,2]
[403629912,1769431844369,-277.267785,0.00019178,2]
[403629914,1769431844378,-256.089938,0.00019178,2]
[403629916,1769431844388,-277.267785,0.00019178,2]
[403629918,1769431844397,-256.089938,0.00019178,2]
[403629920,1769431844407,-256.089938,0.00019178,2]
[403629923,1769431844417,-277.267785,0.00019178,2]
[403629925,1769431844426,-256.089938,0.00019178,2]
[403629926,1769431844440,-277.267785,0.00019178,2]
[403629928,1769431844449,-256.089938,0.00019178,2]
[403629930,1769431844458,-277.267785,0.00019178,2]
[403629932,1769431844468,-256.089938,0.00019178,2]
[403629934,1769431844477,-277.267785,0.00019178,2]
[403629937,1769431844487,-256.089938,0.00019178,2]
[403629938,1769431844496,-277.267785,0.00019178,2]
[403629940,1769431844505,-256.08993,0.00019178,2]
[403629942,1769431844518,-277.267785,0.00019178,2]
[403629945,1769431844527,-277.267785,0.00019178,2]
[403629946,1769431844536,-277.267785,0.00019178,2]
[403629948,1769431844545,-277.267785,0.00019178,2]
[403629950,1769431844554,-277.267785,0.00019178,2]
[403629952,1769431844564,-277.267785,0.00019178,2]
[403629954,1769431844574,-277.267785,0.00019178,2]
[403629956,1769431844583,-277.267785,0.00019178,2]
[403629958,1769431844592,-277.267793,0.00019178,2]
[403629960,1769431844601,-188.122471,0.00019178,2]
[403629963,1769431844615,-165.899546,0.00019178,2]
[403629965,1769431844627,-151.0,0.00019178,2]
[403629967,1769431844640,-165.899546,0.00019178,2]
[403629970,1769431844653,-151.0,0.00019178,2]
[403629972,1769431844664,-165.899546,0.00019178,2]
[403629974,1769431844675,-165.899546,0.00019178,2]
[403629976,1769431844685,-151.0,0.00019178,2]
[403629978,1769431844695,-165.899546,0.00019178,2]
[403629980,1769431844708,-151.0,0.00019178,2]
[403629983,1769431844720,-151.0,0.00019178,2]
[403629985,1769431844731,-165.899546,0.00019178,2]
[403629987,1769431844743,-151.0,0.00019178,2]
[403629989,1769431844755,-165.899546,0.00019178,2]
[403629991,1769431844767,-277.288734,0.00019178,2]
[403629994,1769431844779,-165.899546,0.00019178,2]
[403629996,1769431844792,-165.899546,0.00019178,2]
[403629998,1769431844804,-165.899546,0.00019178,2]
[403630001,1769431844816,-165.899546,0.00019178,2]
[403630003,1769431844829,-165.899546,0.00019178,2]
[403630005,1769431844840,-165.899546,0.00019178,2]
[403630007,1769431844851,-165.899546,0.00019178,2]
[403630010,1769431844864,-151.0,0.00019178,2]
[403630012,1769431844876,-151.0,0.00019178,2]
[403630014,1769431844887,-151.0,0.00019178,2]
[403630016,1769431844898,-151.0,0.00019178,2]
[403630019,1769431844909,-151.0,0.00019178,2]
[403630021,1769431844921,-151.0,0.00019178,2]
[403630023,1769431844933,-151.0,0.00019178,2]
[403630025,1769431844945,-151.0,0.00019178,2]
[403630027,1769431844956,-151.0,0.00019178,2]
[403630030,1769431844968,-213.94935,0.00019178,2]
[403630032,1769431844978,-165.899546,0.00019178,2]
[403630034,1769431844989,-151.0,0.00019178,2]
[403630036,1769431845000,-165.899546,0.00019178,2]
[403630039,1769431845011,-165.899546,0.00019178,2]
[403630041,1769431845022,-151.0,0.00019178,2]
[403630043,1769431845036,-165.899546,0.00019178,2]
[403630045,1769431845047,-151.0,0.00019178,2]
[403630047,1769431845058,-165.899546,0.00019178,2]
[403630049,1769431845069,-165.899544,0.00019178,2]
[403630052,1769431845081,-151.0,0.00019178,2]
[403630054,1769431845094,-154.406762,0.00019178,2]
[403630056,1769431845105,-171.181464,0.00019178,2]
[403630059,1769431845118,-171.181464,0.00019178,2]
[403630061,1769431845129,-171.181464,0.00019178,2]
[403630063,1769431845140,-171.181464,0.00019178,2]
[403630065,1769431845152,-171.181464,0.00019178,2]
[403630067,1769431845163,-171.181464,0.00019178,2]
[403630070,1769431845173,-171.181464,0.00019178,2]
[403630072,1769431845183,-171.181464,0.00019178,2]
[403630074,1769431845192,-171.181464,0.00019178,2]
[403630076,1769431845202,-171.181464,0.00019178,2]
[403630078,1769431845212,-171.181464,0.00019178,2]
[403630080,1769431845223,-171.181464,0.00019178,2]
[403630082,1769431845235,-171.181464,0.00019178,2]
[403630085,1769431845248,-171.181464,0.00019178,2]
[403630087,1769431845261,-171.181464,0.00019178,2]
[403630089,1769431845274,-171.181464,0.00019178,2]
[403630092,1769431845285,-171.181464,0.00019178,2]
[403630093,1769431845294,-171.181464,0.00019178,2]
[403630096,1769431845306,-171.181464,0.00019178,2]
[403630098,1769431845317,-171.181466,0.00019178,2]
[403630100,1769431845328,-151.0,0.00019178,2]
[403630103,1769431845340,-151.0,0.00019178,2]
[403630105,1769431845351,-151.0,0.00019178,2]
[403630107,1769431845362,-151.0,0.00019178,2]
[403630109,1769431845373,-151.0,0.00019178,2]
[403630111,1769431845383,-151.0,0.00019178,2]
[403630113,1769431845394,-151.0,0.00019178,2]
[403630115,1769431845404,-151.0,0.00019178,2]
[403630117,1769431845417,-151.0,0.00019178,2]
[403630120,1769431845427,-151.0,0.00019178,2]
[403630122,1769431845441,-151.0,0.00019178,2]
[403630124,1769431845451,-151.0,0.00019178,2]
[403630126,1769431845462,-151.0,0.00019178,2]
[403630128,1769431845473,-151.0,0.00019178,2]
[403630130,1769431845484,-151.0,0.00019178,2]
[403630133,1769431845495,-152.972032,0.00019178,2]
[403630135,1769431845506,-250.599198,0.00019178,2]
[403630137,1769431845519,-250.599198,0.00019178,2]
[403630139,1769431845531,-250.599198,0.00019178,2]
[403630142,1769431845542,-250.599198,0.00019178,2]
[403630144,1769431845553,-250.599198,0.00019178,2]
[403630146,1769431845564,-250.599198,0.00019178,2]
[403630148,1769431845574,-250.599198,0.00019178,2]
[403630150,1769431845584,-250.599198,0.00019178,2]
[403630152,1769431845594,-250.599198,0.00019178,2]
[403630154,1769431845604,-250.599198,0.00019178,2]
[403630156,1769431845615,-250.599198,0.00019178,2]
[403630158,1769431845625,-250.599198,0.00019178,2]
[403630160,1769431845635,-250.599198,0.00019178,2]
[403630162,1769431845646,-250.599198,0.00019178,2]
[403630165,1769431845657,-250.599198,0.00019178,2]
[403630167,1769431845667,-250.599198,0.00019178,2]
[403630169,1769431845677,-250.599198,0.00019178,2]
[403630171,1769431845687,-250.599198,0.00019178,2]
[403630173,1769431845698,-250.599198,0.00019178,2]
[403630175,1769431845708,-250.599194,0.00019178,2]